lending/lending_fUSD_20240603
["ID","MTS","AMOUNT","RATE_DAILY","PERIOD"]
[328475857,1717426252633,-505.62075808,0.00033298,4]
[328475858,1717426252642,-7526.23404168,0.00033298,4]
[328475859,1717426252651,-447.39331429,0.00033298,4]
[328475860,1717426252663,-155.23553799,0.00033298,4]
[328475861,1717426252672,-6804.1326129,0.00033298,4]
[328475862,1717426252681,-260.46885976,0.00033298,4]
[328475863,1717426252691,-19623.63845774,0.00033298,4]
[328475864,1717426252701,-268.02586426,0.00033298,4]
[328475865,1717426252710,-9161.51745053,0.00033298,4]
[328475866,1717426252721,-428.28701049,0.00033298,4]
[328475867,1717426252732,-2364.90707739,0.00033298,4]
[328475868,1717426252741,-1229.07873002,0.00033298,4]
[328475869,1717426252751,-1082.00640682,0.00033298,4]
[328475870,1717426252760,-3573.39367036,0.00033298,4]
[328475871,1717426252770,-3095.3767325,0.00033298,4]
[328475872,1717426252779,-661.90968785,0.00033298,4]
[328475873,1717426252788,-155.78225631,0.00033298,4]
[328475874,1717426252798,-412.48408781,0.00033298,4]
[328475875,1717426252807,-2188.67864993,0.00033298,4]
[328475876,1717426252816,-224.78567139,0.00033298,4]
[328475877,1717426252825,-892.20615167,0.00033298,4]
[328475878,1717426252835,-370.48437737,0.00033298,4]
[328475879,1717426252844,-978.10442759,0.00033298,4]
[328475880,1717426252853,-298.19947846,0.00033298,4]
[328475881,1717426252863,-1278.17098251,0.00033298,4]
[328475882,1717426252872,-202.47043091,0.00033298,4]
[328475883,1717426252883,-1633.54420309,0.00033298,4]
[328475884,1717426252892,-151.0,0.00033298,7]
[328475885,1717426252901,-151.0,0.00033298,7]
[328475886,1717426252910,-151.0,0.00033298,7]
[328475887,1717426252920,-1246.26126998,0.00033298,4]
[328475888,1717426252929,-530.319044,0.00033298,7]
[328475889,1717426252939,-530.319044,0.00033298,7]
[328475890,1717426252949,-151.0,0.00033298,7]
[328475891,1717426252958,-151.0,0.00033298,7]
[328475892,1717426252968,-200.74708838,0.00033299,2]
[328475893,1717426252977,-2074.42279998,0.00033299,7]
[328475894,1717426252987,-1374.58393,0.00033299,2]
[328475895,1717426252997,-150.0,0.00033299,7]
[328475896,1717426253006,-150.0,0.00033299,7]
[328475897,1717426253016,-150.0,0.00033299,7]
[328475898,1717426253025,-354.69066184,0.000333,5]
[328475899,1717426253035,-215202.60426898,0.000333,5]
[328475900,1717426253044,-321.19760515,0.000333,2]
[328475901,1717426253053,-102444.38289823,0.000333,5]
[328475902,1717426253066,-285.22474783,0.000333,5]
[328475903,1717426253077,-12603.23714043,0.000333,5]
[328475904,1717426253107,-421.6164004,0.00030408,2]
[328475905,1717426253117,-1000.0,0.000321,2]
[328475906,1717426253127,-230.61356488,0.00033298,4]
[328475907,1717426253136,-5573.71794433,0.000333,5]
[328475908,1717426253147,-427.17999998,0.000333,5]
[328475909,1717426253158,-751.80430157,0.000333,5]
[328475910,1717426253170,-34544.9187444,0.000333,5]
[328475911,1717426253181,-693.24,0.000333,5]
[328475912,1717426253192,-5234.8,0.000333,5]
[328475913,1717426253221,-20949.49902044,0.000333,5]
[328475914,1717426253232,-379.07,0.000333,5]
[328475915,1717426253379,121616.57660949,0.000176,2]
[328475916,1717426256691,1041.60790739,0.000176,2]
[328475917,1717426271634,161.33674475,0.0003074,30]
[328475918,1717426271866,161.33674475,0.00030877,30]
[328475919,1717426275618,289.40104956,0.000176,2]
[328475924,1717426669284,58110.58947811,0.000176,2]
[328475925,1717426697386,548.76898063,0.0002,2]
[328475926,1717426715233,676.58181937,0.0002,2]
[328475929,1717426767403,500.0,0.000176,2]
[328475930,1717426767744,500.0,0.000176,2]
[328475931,1717426768094,500.0,0.000176,2]
[328475932,1717426768463,563.0,0.000176,2]
[328475933,1717426785633,545.13448433,0.00019725,2]
[328475934,1717426852712,713.53973876,0.00017259,2]
[328475935,1717426889537,241.30909122,0.00019451,2]
[328475940,1717427202742,1492.08333457,0.00031,30]
[328476145,1717427423282,713.53973876,0.00019725,2]
[328476146,1717427432786,-241.30909122,0.00024279,2]
[328476147,1717427432796,-155.71,0.00024384,2]
[328476148,1717427432806,-159.61,0.00024384,2]
[328476149,1717427432816,-300.0,0.00024706,2]
[328476150,1717427432826,-985.82,0.00024706,2]
[328476151,1717427432835,-500.0,0.00024806,2]
[328476152,1717427432844,-999.99,0.00024806,2]
[328476153,1717427432855,-500.0,0.00025902,2]
[328476154,1717427432865,-500.0,0.00025902,2]
[328476155,1717427432874,-500.0,0.00025902,2]
[328476156,1717427432884,-2037.29980179,0.00025902,2]
[328476157,1717427432895,-2373.46019821,0.00025902,2]
[328476158,1717427432905,-499.99,0.00025902,2]
[328476159,1717427432914,-1149.0,0.000261,3]
[328476160,1717427432924,-494.65,0.00026993,2]
[328476161,1717427432934,-500.0,0.00026998,2]
[328476162,1717427432945,-500.0,0.00026998,2]
[328476163,1717427432954,-500.0,0.00028094,2]
[328476164,1717427432969,-500.0,0.00028094,2]
[328476165,1717427432979,-340.74,0.0002888,2]
[328476166,1717427432989,-167.78,0.00028963,2]
[328476167,1717427432998,-432.1041755,0.00028999,20]
[328476168,1717427433009,-1000.0,0.00029012,2]
[328476169,1717427433019,-720.6,0.00029027,2]
[328476170,1717427433029,-302.92,0.00029081,2]
[328476171,1717427433040,-250.0,0.00029088,2]
[328476172,1717427433050,-23900.0,0.00029115,2]
[328476173,1717427433060,-500.0,0.0002919,2]
[328476174,1717427433069,-500.0,0.0002919,2]
[328476175,1717427433079,-250.0,0.0002922,2]
[328476176,1717427433089,-494.65,0.00029257,2]
[328476177,1717427433098,-1335.73,0.00029272,2]
[328476178,1717427433109,-186.4,0.00029303,2]
[328476179,1717427433118,-6181.85,0.0002937,2]
[328476180,1717427433128,-156.12975288,0.00029472,2]
[328476181,1717427433138,-152.35228071,0.00029547,2]
[328476182,1717427433147,-452.55518761,0.00029635,2]
[328476183,1717427433157,-152.87219358,0.00029836,2]
[328476184,1717427433166,-214.50319524,0.00029968,3]
[328476187,1717427433176,-752.03196948,0.00029968,2]
[328476190,1717427433185,-154.00163495,0.00029985,2]
[328476193,1717427433195,-153.21613592,0.00030007,7]
[328476196,1717427433205,-180.85922128,0.00030011,7]
[328476199,1717427433214,-152.35228071,0.00030038,7]
[328476202,1717427433224,-656.54,0.00030126,10]
[328476205,1717427433234,-656.54,0.00030126,10]
[328476208,1717427433243,-437.69,0.00030126,10]
[328476211,1717427433253,-364.74,0.00030126,10]
[328476214,1717427433263,-154.00163495,0.00030129,7]
[328476217,1717427433273,-500.0,0.00030136,4]
[328476219,1717427433282,-500.0,0.00030136,4]
[328476221,1717427433291,-500.0,0.00030136,4]
[328476222,1717427433301,-500.0,0.00030136,4]
[328476224,1717427433310,-500.0,0.00030136,4]
[328476227,1717427433320,-500.0,0.00030136,4]
[328476229,1717427433331,-500.0,0.00030136,4]
[328476231,1717427433340,-500.0,0.00030136,4]
[328476233,1717427433349,-303.24520475,0.00030136,4]
[328476235,1717427433362,-625.91627403,0.00030136,4]
[328476236,1717427433371,-500.0,0.00030136,4]
[328476238,1717427433381,-513.03627354,0.00030136,4]
[328476240,1717427433391,-500.0,0.00030136,4]
[328476243,1717427433400,-500.0,0.00030136,4]
[328476245,1717427433416,-500.0,0.00030136,4]
[328476247,1717427433425,-500.0,0.00030136,4]
[328476248,1717427433436,-500.0,0.00030136,4]
[328476250,1717427433446,-516.014773,0.00030136,2]
[328476252,1717427433456,-500.0,0.00030136,4]
[328476255,1717427433467,-500.0,0.00030136,4]
[328476256,1717427433479,-503.67359741,0.00030136,4]
[328476258,1717427433491,-500.0,0.00030136,4]
[328476261,1717427433504,-500.0,0.00030136,4]
[328476262,1717427433515,-388.21511958,0.00030136,4]
[328476265,1717427433525,-582.87,0.00030136,4]
[328476266,1717427433535,-545.98,0.00030136,4]
[328476269,1717427433545,-513.46049616,0.00030136,4]
[328476271,1717427433555,-523.56,0.00030136,4]
[328476273,1717427433563,-500.0,0.00030136,4]
[328476274,1717427433572,-500.0,0.00030136,4]
[328476277,1717427433582,-500.0,0.00030136,4]
[328476279,1717427433592,-500.0,0.00030136,4]
[328476281,1717427433604,-533.97508717,0.00030136,4]
[328476282,1717427433613,-500.0,0.00030136,4]
[328476284,1717427433623,-500.0,0.00030136,4]
[328476287,1717427433632,-156.63620814,0.00030136,4]
[328476288,1717427433641,-500.0,0.00030136,4]
[328476290,1717427433651,-500.0,0.00030136,4]
[328476293,1717427433660,-500.0,0.00030136,4]
[328476294,1717427433669,-500.0,0.00030136,4]
[328476297,1717427433680,-500.0,0.00030136,4]
[328476298,1717427433689,-500.0,0.00030136,4]
[328476300,1717427433698,-513.183423,0.00030136,4]
[328476302,1717427433707,-601.73,0.00030136,4]
[328476304,1717427433717,-512.93676593,0.00030136,4]
[328476306,1717427433727,-571.73,0.00030136,4]
[328476308,1717427433736,-500.0,0.00030136,4]
[328476310,1717427433745,-500.0,0.00030136,4]
[328476312,1717427433754,-500.0,0.00030136,4]
[328476314,1717427433763,-500.0,0.00030136,4]
[328476316,1717427433772,-500.0,0.00030136,4]
[328476318,1717427433781,-312.94642988,0.00030136,4]
[328476320,1717427433791,-500.0,0.00030136,4]
[328476322,1717427433800,-500.0,0.00030136,4]
[328476324,1717427433810,-507.66972211,0.00030136,4]
[328476326,1717427433819,-500.0,0.00030136,4]
[328476328,1717427433828,-500.0,0.00030136,4]
[328476330,1717427433837,-525.33412689,0.00030136,4]
[328476332,1717427433847,-500.0,0.00030136,4]
[328476334,1717427433858,-500.0,0.00030136,4]
[328476336,1717427433867,-500.0,0.00030136,4]
[328476338,1717427433876,-500.0,0.00030136,4]
[328476340,1717427433886,-500.0,0.00030136,4]
[328476342,1717427433895,-574.26,0.00030136,4]
[328476344,1717427433905,-500.0,0.00030136,4]
[328476346,1717427433914,-500.0,0.00030136,4]
[328476348,1717427433923,-522.51061023,0.00030136,4]
[328476350,1717427433934,-500.0,0.00030136,4]
[328476352,1717427433943,-154.00163495,0.00030196,7]
[328476354,1717427433953,-500.0,0.00030286,10]
[328476356,1717427433963,-500.0,0.00030286,10]
[328476358,1717427433977,-154.00163495,0.00030383,7]
[328476360,1717427433987,-500.0,0.0003041,4]
[328476362,1717427433996,-500.0,0.0003041,4]
[328476364,1717427434006,-528.01320624,0.0003041,4]
[328476366,1717427434018,-500.0,0.0003041,4]
[328476368,1717427434027,-500.0,0.0003041,4]
[328476370,1717427434037,-160.32142598,0.0003041,4]
[328476372,1717427434047,-500.0,0.0003041,4]
[328476375,1717427434059,-500.0,0.0003041,4]
[328476376,1717427434068,-631.03083197,0.0003041,4]
[328476379,1717427434078,-500.0,0.0003041,4]
[328476380,1717427434088,-500.0,0.0003041,4]
[328476382,1717427434098,-500.0,0.0003041,4]
[328476384,1717427434109,-500.0,0.0003041,4]
[328476386,1717427434118,-500.0,0.0003041,4]
[328476388,1717427434128,-500.0,0.0003041,4]
[328476390,1717427434137,-500.0,0.0003041,4]
[328476392,1717427434146,-500.0,0.0003041,4]
[328476394,1717427434156,-508.21142098,0.0003041,4]
[328476396,1717427434166,-500.0,0.0003041,4]
[328476398,1717427434175,-160.89,0.0003041,4]
[328476400,1717427434184,-500.0,0.0003041,4]
[328476402,1717427434193,-155.6044064,0.00030453,7]
[328476404,1717427434202,-152.35228071,0.00030467,7]
[328476406,1717427434212,-157.23029278,0.00030533,7]
[328476408,1717427434221,-166.66666666,0.0003064,7]
[328476410,1717427434231,-500.0,0.00030684,4]
[328476412,1717427434240,-500.0,0.00030684,4]
[328476414,1717427434250,-500.0,0.00030684,4]
[328476416,1717427434259,-638.83,0.00030684,4]
[328476418,1717427434268,-314.84,0.00030684,4]
[328476420,1717427434279,-500.0,0.00030684,4]
[328476422,1717427434289,-500.0,0.00030684,4]
[328476423,1717427434299,-500.0,0.00030684,4]
[328476424,1717427434309,-500.0,0.00030684,4]
[328476425,1717427434318,-375.8,0.00030684,4]
[328476426,1717427434328,-500.0,0.00030684,4]
[328476427,1717427434338,-533.41,0.00030684,4]
[328476428,1717427434347,-499.8,0.00030684,4]
[328476429,1717427434359,-587.67,0.00030684,4]
[328476430,1717427434368,-701.3996,0.00030858,2]
[328476431,1717427434378,-500.0,0.00030958,4]
[328476432,1717427434388,-500.0,0.00030958,4]
[328476433,1717427434397,-500.0,0.00030958,4]
[328476434,1717427434407,-500.0,0.00030958,4]
[328476435,1717427434416,-500.0,0.00030958,4]
[328476436,1717427434425,-272.37,0.00030958,4]
[328476437,1717427434435,-500.0,0.00030958,4]
[328476438,1717427434445,-188.592,0.00030995,2]
[328476439,1717427434455,-150.0,0.00031,7]
[328476440,1717427434465,-372.72603095,0.00031,2]
[328476442,1717427434474,-1593.48876069,0.00031,4]
[328476444,1717427434484,-153.21613592,0.00031041,7]
[328476446,1717427434493,-161.33674475,0.00031041,30]
[328476447,1717427434504,-161.33674475,0.00031178,30]
[328476448,1717427434514,-500.0,0.00031232,4]
[328476449,1717427434523,-252.32,0.00031232,4]
[328476450,1717427434533,-500.0,0.00031232,4]
[328476451,1717427434543,-500.0,0.00031232,4]
[328476452,1717427434552,-500.0,0.00031232,4]
[328476453,1717427434563,-182.9,0.00031232,4]
[328476454,1717427434572,-153.21613592,0.00031251,7]
[328476455,1717427434582,-152.87219358,0.00031317,7]
[328476456,1717427434591,-158.028352,0.00031318,7]
[328476457,1717427434603,-161.33674475,0.00031342,30]
[328476458,1717427434612,-594.08075365,0.00031382,10]
[328476459,1717427434623,-12320.6937,0.00031406,2]
[328476460,1717427434633,-1000.0,0.00031406,2]
[328476461,1717427434643,-153.21613592,0.00031435,7]
[328476462,1717427434653,-161.33674475,0.00031479,30]
[328476463,1717427434663,-2310.52757126,0.000315,2]
[328476464,1717427434673,-452.370913,0.000315,2]
[328476465,1717427434683,-500.0,0.00031506,4]
[328476466,1717427434692,-500.0,0.00031506,4]
[328476467,1717427434702,-500.0,0.00031506,4]
[328476468,1717427434711,-500.0,0.00031506,4]
[328476469,1717427434722,-494.65,0.00031521,2]
[328476470,1717427434732,-153.21613592,0.00031572,7]
[328476471,1717427434742,-7500.0,0.00031579,2]
[328476472,1717427434752,-1298.78853938,0.00031633,4]
[328476473,1717427434763,-161.33674475,0.00031644,30]
[328476474,1717427434774,-355.50158491,0.00031647,2]
[328476475,1717427434784,-2155.07,0.00031678,4]
[328476476,1717427434794,-500.0,0.00031678,4]
[328476477,1717427434803,-1250.71,0.00031678,4]
[328476478,1717427434813,-753.26,0.00031678,4]
[328476479,1717427434823,-555.87,0.00031678,4]
[328476480,1717427434832,-562.04,0.00031678,4]
[328476481,1717427434842,-500.0,0.00031678,4]
[328476482,1717427434852,-733.77,0.00031678,4]
[328476483,1717427434861,-500.0,0.00031678,4]
[328476484,1717427434870,-500.0,0.00031678,4]
[328476485,1717427434879,-392.9967667,0.00031678,4]
[328476486,1717427434889,-500.0,0.00031678,4]
[328476487,1717427434899,-647.40116145,0.00031678,4]
[328476488,1717427434908,-1328.43,0.00031678,4]
[328476489,1717427434917,-500.0,0.00031678,4]
[328476490,1717427434927,-500.0,0.00031678,4]
[328476491,1717427434936,-500.0,0.00031678,4]
[328476492,1717427434945,-635.0,0.00031678,4]
[328476493,1717427434954,-678.97,0.00031678,4]
[328476494,1717427434965,-6474.61,0.00031678,4]
[328476495,1717427434978,-500.0,0.00031678,4]
[328476496,1717427434987,-549.62,0.00031678,4]
[328476497,1717427434997,-500.0,0.00031678,4]
[328476498,1717427435007,-1233.03,0.00031678,4]
[328476499,1717427435016,-656.58,0.00031678,4]
[328476500,1717427435026,-500.0,0.00031678,4]
[328476501,1717427435035,-1550.84,0.00031678,4]
[328476502,1717427435046,-500.0,0.00031678,4]
[328476503,1717427435056,-500.0,0.00031678,4]
[328476504,1717427435065,-1273.22,0.00031678,4]
[328476505,1717427435074,-500.0,0.00031678,4]
[328476506,1717427435084,-500.0,0.00031678,4]
[328476507,1717427435094,-500.0,0.00031678,4]
[328476508,1717427435104,-500.0,0.00031678,4]
[328476509,1717427435115,-500.0,0.00031678,4]
[328476510,1717427435124,-500.0,0.00031678,4]
[328476511,1717427435134,-1023.85,0.00031678,4]
[328476512,1717427435145,-500.0,0.00031678,4]
[328476513,1717427435154,-500.0,0.00031678,4]
[328476514,1717427435164,-500.0,0.00031678,4]
[328476515,1717427435173,-500.0,0.00031678,4]
[328476516,1717427435183,-500.0,0.00031678,4]
[328476517,1717427435192,-530.95,0.00031678,4]
[328476518,1717427435202,-1452.21,0.00031678,4]
[328476519,1717427435211,-500.0,0.00031678,4]
[328476520,1717427435220,-500.0,0.00031678,4]
[328476521,1717427435230,-500.0,0.00031678,4]
[328476522,1717427435239,-500.0,0.00031678,4]
[328476523,1717427435249,-500.0,0.00031678,4]
[328476524,1717427435259,-645.69,0.00031678,4]
[328476525,1717427435269,-500.0,0.00031678,4]
[328476526,1717427435279,-622.00543051,0.00031678,4]
[328476527,1717427435289,-500.0,0.00031678,4]
[328476528,1717427435298,-500.0,0.00031678,4]
[328476529,1717427435308,-500.0,0.00031678,4]
[328476530,1717427435318,-500.0,0.00031678,4]
[328476531,1717427435327,-500.0,0.00031678,4]
[328476532,1717427435336,-500.0,0.00031678,4]
[328476533,1717427435346,-962.97,0.00031678,4]
[328476534,1717427435358,-500.0,0.00031678,4]
[328476535,1717427435368,-500.0,0.00031678,4]
[328476536,1717427435377,-500.0,0.00031678,4]
[328476537,1717427435521,-500.0,0.00031678,4]
[328476538,1717427435531,-1720.6,0.00031678,4]
[328476539,1717427435541,-500.0,0.00031678,4]
[328476540,1717427435551,-500.0,0.00031678,4]
[328476541,1717427435560,-500.0,0.00031679,4]
[328476542,1717427435569,-500.0,0.00031679,4]
[328476543,1717427435579,-500.0,0.00031679,4]
[328476544,1717427435591,-500.0,0.00031679,4]
[328476545,1717427435601,-500.0,0.00031679,4]
[328476546,1717427435611,-500.0,0.00031679,4]
[328476547,1717427435620,-500.0,0.00031679,4]
[328476548,1717427435629,-500.0,0.00031679,4]
[328476549,1717427435638,-13908.09,0.00031679,4]
[328476550,1717427435648,-500.0,0.00031679,4]
[328476551,1717427435658,-500.0,0.00031679,4]
[328476552,1717427435668,-322.23564714,0.00031679,4]
[328476553,1717427435678,-500.0,0.00031679,4]
[328476554,1717427435688,-500.0,0.00031679,4]
[328476555,1717427435697,-500.0,0.00031679,4]
[328476556,1717427435707,-500.0,0.00031679,4]
[328476557,1717427435716,-500.0,0.00031679,4]
[328476558,1717427435725,-500.0,0.00031679,4]
[328476559,1717427435738,-500.0,0.00031679,4]
[328476560,1717427435748,-500.0,0.00031679,4]
[328476561,1717427435758,-500.0,0.00031679,4]
[328476562,1717427435768,-500.0,0.00031679,4]
[328476563,1717427435778,-500.0,0.00031679,4]
[328476564,1717427435789,-162.83582415,0.00031679,4]
[328476565,1717427435801,-500.0,0.00031679,4]
[328476566,1717427435810,-537.17842347,0.00031679,4]
[328476567,1717427435821,-500.0,0.00031679,4]
[328476568,1717427435832,-506.04601996,0.00031679,4]
[328476569,1717427435841,-520.49159836,0.00031679,4]
[328476570,1717427435851,-500.0,0.00031679,4]
[328476571,1717427435862,-500.0,0.00031679,4]
[328476572,1717427435871,-500.0,0.00031679,4]
[328476573,1717427435880,-500.0,0.00031679,4]
[328476574,1717427435890,-500.0,0.00031679,4]
[328476575,1717427435900,-500.0,0.00031679,4]
[328476576,1717427435910,-500.0,0.00031679,4]
[328476577,1717427435920,-500.0,0.00031679,4]
[328476578,1717427435930,-577.43,0.00031679,4]
[328476579,1717427435939,-500.0,0.00031679,4]
[328476580,1717427435948,-500.0,0.00031679,4]
[328476581,1717427435958,-500.0,0.00031679,4]
[328476582,1717427435969,-500.0,0.00031679,4]
[328476583,1717427435979,-500.0,0.00031679,4]
[328476584,1717427435989,-537.34,0.00031679,4]
[328476585,1717427435999,-450.0,0.00031679,4]
[328476586,1717427436010,-507.58492614,0.00031679,4]
[328476587,1717427436019,-500.0,0.00031679,4]
[328476588,1717427436028,-500.0,0.00031679,4]
[328476589,1717427436039,-500.0,0.00031679,4]
[328476590,1717427436050,-500.0,0.00031679,4]
[328476591,1717427436063,-500.0,0.00031679,4]
[328476592,1717427436073,-500.0,0.00031679,4]
[328476593,1717427436082,-508.52087434,0.00031679,4]
[328476594,1717427436092,-500.0,0.00031679,4]
[328476595,1717427436102,-500.0,0.00031679,4]
[328476596,1717427436112,-501.79140605,0.00031679,2]
[328476597,1717427436120,-512.55384039,0.00031679,4]
[328476598,1717427436129,-500.0,0.00031679,4]
[328476599,1717427436138,-500.0,0.00031679,4]
[328476600,1717427436147,-504.12550552,0.00031679,4]
[328476601,1717427436157,-500.0,0.00031679,4]
[328476602,1717427436166,-501.17,0.00031679,4]
[328476603,1717427436177,-518.22750317,0.00031679,4]
[328476604,1717427436186,-500.0,0.00031679,4]
[328476605,1717427436196,-500.0,0.00031679,4]
[328476606,1717427436206,-500.0,0.00031679,4]
[328476607,1717427436215,-510.19999611,0.00031679,4]
[328476608,1717427436225,-500.0,0.00031679,4]
[328476609,1717427436235,-337.17534713,0.00031679,4]
[328476610,1717427436245,-500.0,0.00031679,4]
[328476611,1717427436255,-500.0,0.00031679,4]
[328476612,1717427436265,-500.0,0.00031679,4]
[328476613,1717427436275,-500.0,0.00031679,4]
[328476614,1717427436286,-163.68,0.00031679,4]
[328476615,1717427436296,-500.0,0.00031679,4]
[328476616,1717427436306,-500.0,0.00031679,4]
[328476617,1717427436318,-500.0,0.00031679,4]
[328476618,1717427436328,-500.0,0.00031679,4]
[328476619,1717427436338,-500.0,0.00031679,4]
[328476620,1717427436348,-500.0,0.00031679,4]
[328476621,1717427436359,-549.53187097,0.00031679,4]
[328476622,1717427436368,-522.61059398,0.00031679,4]
[328476623,1717427436378,-517.12349342,0.00031679,4]
[328476624,1717427436387,-500.0,0.00031679,4]
[328476625,1717427436398,-500.0,0.00031679,4]
[328476626,1717427436408,-500.0,0.00031679,4]
[328476627,1717427436419,-500.0,0.00031679,4]
[328476628,1717427436429,-500.0,0.00031679,4]
[328476629,1717427436439,-500.0,0.00031679,4]
[328476630,1717427436449,-500.0,0.00031679,4]
[328476631,1717427436459,-500.0,0.00031679,4]
[328476632,1717427436469,-533.01635936,0.00031679,4]
[328476633,1717427436479,-500.0,0.00031679,4]
[328476634,1717427436489,-509.35646009,0.00031679,4]
[328476635,1717427436498,-503.58329094,0.00031679,4]
[328476636,1717427436508,-500.0,0.00031679,4]
[328476637,1717427436517,-503.53776297,0.00031679,4]
[328476638,1717427436526,-510.92078245,0.00031679,4]
[328476639,1717427436536,-500.0,0.00031679,4]
[328476640,1717427436546,-500.0,0.00031679,4]
[328476641,1717427436555,-500.0,0.00031679,4]
[328476642,1717427436565,-500.0,0.00031679,4]
[328476643,1717427436574,-641.95252222,0.00031679,4]
[328476644,1717427436583,-500.0,0.00031679,4]
[328476645,1717427436593,-500.0,0.00031679,4]
[328476646,1717427436603,-500.0,0.00031679,4]
[328476647,1717427436613,-500.0,0.00031679,4]
[328476648,1717427436622,-500.0,0.00031679,4]
[328476649,1717427436631,-500.0,0.00031679,4]
[328476650,1717427436641,-538.57617824,0.00031679,4]
[328476651,1717427436651,-500.0,0.00031679,4]
[328476652,1717427436660,-500.0,0.00031679,4]
[328476653,1717427436669,-500.0,0.00031679,4]
[328476654,1717427436679,-500.0,0.00031679,4]
[328476655,1717427436688,-500.0,0.00031679,4]
[328476656,1717427436697,-510.37990339,0.00031679,4]
[328476657,1717427436706,-245.1972442,0.00031679,4]
[328476658,1717427436716,-500.0,0.00031679,4]
[328476659,1717427436726,-531.34858377,0.00031679,4]
[328476660,1717427436736,-500.0,0.00031679,4]
[328476661,1717427436746,-1043.0,0.00031679,4]
[328476662,1717427436755,-517.03399837,0.00031679,4]
[328476663,1717427436765,-500.0,0.00031679,4]
[328476664,1717427436775,-512.35164432,0.00031679,4]
[328476665,1717427436784,-559.92,0.00031679,4]
[328476666,1717427436794,-506.53558917,0.00031679,4]
[328476667,1717427436804,-593.73822877,0.00031679,4]
[328476668,1717427436814,-500.0,0.00031679,4]
[328476669,1717427436824,-514.73656185,0.00031679,4]
[328476670,1717427436834,-500.0,0.00031679,4]
[328476671,1717427436844,-500.0,0.00031679,4]
[328476672,1717427436855,-513.73116713,0.00031679,4]
[328476673,1717427436865,-500.0,0.00031679,4]
[328476674,1717427436874,-1491.69,0.00031679,4]
[328476675,1717427436887,-501.33269358,0.00031679,4]
[328476676,1717427436897,-500.0,0.00031679,4]
[328476677,1717427436906,-512.93145628,0.00031679,4]
[328476678,1717427436916,-500.0,0.00031679,4]
[328476679,1717427436926,-527.75403914,0.00031679,4]
[328476680,1717427436936,-500.0,0.00031679,4]
[328476681,1717427436945,-513.70295106,0.00031679,4]
[328476682,1717427436954,-500.0,0.00031679,4]
[328476683,1717427436966,-500.0,0.00031679,4]
[328476684,1717427436978,-346.7252796,0.00031679,4]
[328476685,1717427436988,-503.88344582,0.00031679,4]
[328476686,1717427436998,-536.08455183,0.00031679,4]
[328476687,1717427437007,-506.57986052,0.00031679,4]
[328476688,1717427437018,-500.0,0.00031679,4]
[328476689,1717427437028,-505.13477892,0.00031679,4]
[328476690,1717427437038,-506.94766865,0.00031679,4]
[328476691,1717427437050,-500.0,0.00031679,4]
[328476692,1717427437060,-1133.03,0.00031679,4]
[328476693,1717427437069,-500.0,0.00031679,4]
[328476694,1717427437079,-500.0,0.00031679,4]
[328476695,1717427437088,-582.44,0.00031679,4]
[328476696,1717427437098,-500.0,0.00031679,4]
[328476697,1717427437109,-500.0,0.00031679,4]